Cogmind - Beta 10.2 @@@ ROGUE MODE // 2022.02.17 @ 07:14:35 Player: A Legendary Sword Result: Self-destructed Performance ------------- Evolutions (1) 500 Regions Visited (2) 400 Robots Destroyed (37) 185 Value Destroyed (1048) 1048 Prototype IDs (2) 40 Alien Tech Used (0) 0 Bonus (0) 0 TOTAL SCORE: 2173 Bonus ------- None Cogmind --------- Core Integrity 273/400 Matter 17/300 Energy 100/100 System Corruption 0% Temperature Cool (0) Movement Treading (160) Location -9/Materials Parts ------- > --- POWER (1) -------- (None) > --- PROPULSION (2) --- Light Treads Light Treads > --- UTILITY (3) ------ High-capacity Storage Unit > --- WEAPON (3) ------- (None) > --- INVENTORY (12) --- Light Nuclear Core Light Nuclear Core High-capacity Storage Unit Large Battery (300) Autogun Autogun Minigun Improved Datajack Improved Datajack Improved Datajack Improved Datajack Hammer Peak State ------------ > --- POWER ------------ Light Nuclear Core > --- PROPULSION ------- Light Treads Light Treads > --- UTILITY ---------- Heat Sink High-capacity Storage Unit Medium Armor Plating > --- WEAPON ----------- Minigun Minigun Minigun > --- INVENTORY -------- Light Nuclear Core Light Nuclear Core High-capacity Storage Unit Large Battery Autogun Autogun Minigun Improved Datajack Improved Datajack Improved Datajack Improved Datajack [Rating: 20] Favorites ----------- Power Light Nuclear Core Engine Ion Engine Power Core Light Nuclear Core Propulsion Light Treads Treads Light Treads Utility Medium Armor Plating Device Heat Sink Storage High-capacity Storage Unit Hackware Hacking Suite Protection Medium Armor Plating Weapon Autogun Energy Gun EM Pulse Gun Ballistic Gun Autogun Special Melee Weapon Datajack Build | -11 -10 -9 ------- Run | Scr Mat Mat Slots Evolved 2 | . . 2 Power . | . . . Propulsion . | . . . Utility 1 | . . 1 Weapon 1 | . . 1 Parts Attached 43 | 6 18 19 Power 5 | 1 2 2 Engine 3 | 1 2 . Core 2 | . . 2 Reactor . | . . . Propulsion 7 | 2 3 2 Treads 7 | 2 3 2 Leg . | . . . Wheel . | . . . Hover . | . . . Flight . | . . . Utility 10 | 1 5 4 Device 3 | . 2 1 Storage 3 | 1 2 . Processor . | . . . Hackware 1 | . . 1 Protection 3 | . 1 2 Artifact . | . . . Weapon 21 | 2 8 11 Energy Gun 5 | 2 3 . Energy Cannon . | . . . Ballistic Gun 13 | . 5 8 Ballistic Cannon . | . . . Launcher . | . . . Special Weapon . | . . . Impact Weapon . | . . . Slashing Weapon . | . . . Piercing Weapon . | . . . Special Melee Weapon 3 | . . 3 Unidentified Prototypes . | . . . Parts Lost 4 | . 1 3 Power 1 | . . 1 Propulsion . | . . . Utility 2 | . . 2 Weapon 1 | . 1 . Highest Loss Streak 2 | . 1 2 Average Slot Usage (%) 96 | . 97 95 Engine 6 | . 13 . Core 5 | . . 10 Treads 24 | . 27 22 Device 4 | . 5 4 Storage 13 | . 15 11 Hackware 1 | . . 1 Protection 9 | . 5 13 Energy Gun 2 | . 4 . Ballistic Gun 27 | . 23 31 Naked Turns . | . . . Heaviest Build 60 | 12 50 60 Greatest Support 40 | 40 40 40 Greatest Overweight (x) 1 | . 1 1 Average Overweight (x) . | . . . Largest Inventory Capacity 14 | 6 14 12 Average Capacity 10 | 5 9 12 Most Carried 12 | 3 12 12 Average Carried 8 | 1 6 10 Final Capacity 12 | 6 12 12 Final Carried 12 | 1 12 12 Class Distribution -------------------- 49% | Tank 48% | Mutant Dominant Class ---------------- Mutant | -10/Materials Tank | -9/Materials Resources | -11 -10 -9 ----------- Run | Scr Mat Mat Matter Collected 1199 | 253 314 632 Remotely . | . . . Salvage Created 1232 | . 318 914 Parts 91 | . 29 62 Haulers Intercepted . | . . . Recyclers Shooed . | . . . Parts Field Recycled . | . . . Retrieved Matter . | . . . Parts Self-Destructed . | . . . Prevented . | . . . Kills | -11 -10 -9 ------- Run | Scr Mat Mat Combat Hostiles Destroyed 27 | . 10 17 Guns 27 | . 10 17 Classes Destroyed 6 | . 4 2 Operator 3 | . 1 2 Watcher 7 | . 3 4 Swarmer 6 | . 6 . Grunt 14 | . 4 10 Brawler 1 | . . 1 Sentry 6 | . . 6 Best Kill Streak 4 | . 4 4 Combat Bots Only 4 | . 3 4 Max Kills in Single Turn 1 | . 1 1 Gunslinging . | . . . Exploded . | . . . Melee . | . . . Uniques/NPCs Destroyed . | . . . Combat | -11 -10 -9 -------- Run | Scr Mat Mat Damage Taken 1489 | . 428 1061 Core 164 | . 37 127 Absorbed by Shields . | . . . Core Remaining (%) 92 | 100 85 . Volleys Fired 108 | . 54 54 Largest 3 | . 2 3 Hottest 100 | . 100 75 Shots Fired 259 | . 97 162 Gun 259 | . 97 162 Cannon . | . . . Launcher . | . . . Special . | . . . Kinetic 231 | . 69 162 Thermal 21 | . 21 . Explosive . | . . . Electromagnetic 7 | . 7 . Robot Hit Streak 19 | . 9 19 Robot Miss Streak 5 | . 3 5 Penetration Max . | . . . Secondary Targets 2 | . 2 . Max Gunslinging Chain 1 | . 1 . Shots Hit Robots 146 | . 53 93 Core Hits 56 | . 19 37 Critical Hits 1 | . . 1 Critical Kills . | . . . Critical Parts Destroyed 1 | . . 1 Melee Attacks 8 | . . 8 Impact . | . . . Slashing . | . . . Piercing . | . . . Sneak Attacks 4 | . . 4 Combat Hostiles . | . . . Follow-up Attacks . | . . . Damage Inflicted 1831 | . 603 1228 Guns 1831 | . 603 1228 Cannons . | . . . Explosions . | . . . Melee . | . . . Ramming . | . . . Kinetic 1637 | . 409 1228 Thermal 194 | . 194 . Explosive . | . . . Electromagnetic . | . . . Impact . | . . . Slashing . | . . . Piercing . | . . . Highest Corruption 2 | . 2 . Average Corruption 2 | . 2 . Corruption Purged . | . . . Effects 6 | . 6 . Message Errors 3 | . 3 . Heat Flow Errors 1 | . 1 . Data Loss (minor) 2 | . 2 . Overload Shots . | . . . Overflow Damage . | . . . Projectiles . | . . . Explosions . | . . . Melee . | . . . Knockbacks . | . . . Impact . | . . . Kinetic . | . . . Secondary . | . . . Self-Inflicted Damage . | . . . Shots . | . . . Rammed . | . . . Targets Rammed . | . . . Kicked . | . . . Crushed . | . . . Highest Temperature 461 | . 461 219 Average Temperature 93 | . 200 38 Received Heat Transfer 561 | . 162 399 Effects 5 | . 5 . Energy Bleed 1 | . 1 . Interference 2 | . 2 . Short Circuit 1 | . 1 . Damage (minor) 1 | . 1 . Siege Activations . | . . . Robots Corrupted . | . . . Combat Hostiles . | . . . Parts Fried . | . . . Impact Corruptions . | . . . Robots Melted . | . . . Combat Hostiles . | . . . Parts Melted . | . . . Heat Transferred 568 | . 568 . Parts Sabotaged . | . . . Parts Stolen . | . . . Parts Stripped . | . . . Power Chain Reactions . | . . . Missiles Intercepted . | . . . Alert | -11 -10 -9 ------- Run | Scr Mat Mat Peak Influence 312 | . 312 291 Initial . | . . . Average 115 | . 86 145 Maximum Alert Level 1 | . 1 1 Low Security (%) 82 | 100 91 74 Level 1 17 | . 8 25 Level 2 . | . . . Level 3 . | . . . Level 4 . | . . . Level 5 . | . . . High Security . | . . . Max Security . | . . . Squads Dispatched 4 | . 1 3 Investigation . | . . . Extermination . | . . . Reinforcement 4 | . 1 3 Assault . | . . . Garrison . | . . . Intercept . | . . . Construction Impeded . | . . . Haulers Reinforced . | . . . Stealth | -11 -10 -9 --------- Run | Scr Mat Mat Distress Signals 5 | . 3 2 Communications Jammed . | . . . Distress Signals . | . . . Times Spotted 57 | . 24 33 Peak Tracking Total 5 | . 4 5 Tactical Retreats 4 | . 3 1 Traps | -11 -10 -9 ------- Run | Scr Mat Mat Traps Triggered 2 | . 2 . Indirectly . | . . . Trap Hack Attempts . | . . . Triggered . | . . . Disarmed . | . . . Reprogrammed . | . . . Reused . | . . . Traps Extracted . | . . . Installed . | . . . Triggered . | . . . Machines | -11 -10 -9 ---------- Run | Scr Mat Mat Machines Disabled 3 | . 2 1 Max in Single Turn 1 | . 1 1 Machines Sabotaged . | . . . Garrisons Compromised . | . . . Overloaded Fab Kills . | . . . Fab Network Shutdowns . | . . . Hacking | -11 -10 -9 --------- Run | Scr Mat Mat Machines Accessed 16 | . 8 8 Terminals 12 | . 6 6 Fabricators . | . . . Repair Stations 1 | . . 1 Recycling Units 3 | . 2 1 Scanalyzers . | . . . Garrison Access . | . . . Total Hacks 49 | . 23 26 Successful 34 | . 16 18 Failed 15 | . 7 8 Catastrophic 1 | . . 1 Database Lockouts . | . . . Manual 29 | . 12 17 Terminals 40 | . 20 20 Fabricators . | . . . Repair Stations 4 | . . 4 Recycling Units 5 | . 3 2 Scanalyzers . | . . . Garrison Access . | . . . Terminal Hacks 10 | . 6 4 Record 1 | . 1 . Prototype ID Bank 1 | . . 1 Emergency Access Points 1 | . . 1 Alert Level 3 | . 2 1 Locate Traps 2 | . 2 . Zone Layout 2 | . 1 1 Fabricator Hacks . | . . . Repair Station Hacks 4 | . . 4 Scan Component 2 | . . 2 Repair 2 | . . 2 Recycling Unit Hacks 4 | . 2 2 Report Inventory 3 | . 2 1 Retrieve Components 1 | . . 1 Scanalyzer . | . . . Garrison Access Hacks . | . . . Unauthorized Hacks 16 | . 8 8 Terminals 16 | . 8 8 Assimilate 6 | . 3 3 Botnet 10 | . 5 5 Fabricators . | . . . Repair Stations . | . . . Recycling Units . | . . . Scanalyzers . | . . . Garrison Access . | . . . Data Cores Recovered . | . . . Used . | . . . Hacking Detections 14 | . 7 7 Full Trace Events . | . . . Feedback Events . | . . . Feedback Blocked . | . . . Robot Schematics Acquired . | . . . Robots Built . | . . . Matter . | . . . Time . | . . . Total Robot Build Rating . | . . . Part Schematics Acquired . | . . . Parts Built . | . . . Matter . | . . . Time . | . . . Total Part Build Rating . | . . . Parts Repaired 2 | . . 2 Time 58 | . . 58 Parts Recycled . | . . . Recycled Matter . | . . . Retrieved Matter . | . . . Retrieved Components 9 | . . 9 Parts Scanalyzed . | . . . Part Schematics Acquired . | . . . Parts Damaged . | . . . Bothacking | -11 -10 -9 ------------ Run | Scr Mat Mat Used RIF Installer . | . . . Robots Hacked 3 | . . 3 Non-combat 2 | . . 2 Combat 1 | . . 1 Robot Hacks Applied 5 | . . 5 parse_system 2 | . . 2 no_distress 1 | . . 1 find_recycling 1 | . . 1 check_alert 1 | . . 1 Relay Couplers Released . | . . . Robots Rewired . | . . . Allies Hacked . | . . . Hacks Repelled . | . . . Allies | -11 -10 -9 -------- Run | Scr Mat Mat Total Allies . | . . . Largest Group . | . . . Highest-Rated Group . | . . . Highest-Rated Ally . | . . . Total Orders . | . . . Ally Attacks . | . . . Total Damage . | . . . Kills . | . . . Allies Corrupted . | . . . Allies Melted . | . . . Intel | -11 -10 -9 ------- Run | Scr Mat Mat Robot Analysis Total . | . . . Derelict Logs Recovered . | . . . Drone Launches . | . . . Drone Recoveries . | . . . Exploration | -11 -10 -9 ------------- Run | Scr Mat Mat Turns Passed 3257 | 71 1449 1737 Spaces Moved 1495 | 44 692 759 Core 10 | 10 . . Treads 1485 | 34 692 759 Legs . | . . . Wheels . | . . . Hover . | . . . Flight . | . . . Fastest Speed 50 | 50 160 160 Average Speed 174 | 135 170 179 Slowest Speed 180 | 160 180 180 Overloaded Moves . | . . . Propulsion Burnouts . | . . . Robots Hopped . | . . . Cave-ins Triggered . | . . . Exploration Rate (%) 57 | 4 99 68 Regions Visited 2 Branch Regions . Pre-discovered Areas . | . . . Known Exits Taken . | . . . Unknown Exits Taken 2 | 1 1 . Scrap Searched . | . . . Spaces Dug . | . . . Terrain Destroyed . | . . . Melee . | . . . Projectile . | . . . AOE . | . . . Terrain Rammed . | . . . Walls Destroyed . | . . . Machines Disabled . | . . . Actions | -11 -10 -9 --------- Run | Scr Mat Mat Total 1963 | 56 866 1041 Wait 226 | . 63 163 Move 1493 | 43 691 759 Hop . | . . . Pick Up 52 | 7 27 18 Fast Attach 1 | . 1 . Attach 25 | 6 8 11 Detach 4 | . 1 3 Swap 17 | . 9 8 Drop 29 | . 12 17 Fire 108 | . 54 54 Melee 8 | . . 8 Ram . | . . . Kick . | . . . Crush . | . . . Escape Stasis . | . . . Rewire . | . . . Trap . | . . . Miscellaneous . | . . . Route ------- -11/Scrapyard -10/Materials (discovered 5 exits: *Mat x3 / [*Min x2]) -9/Materials (discovered 2 exits: [*Mat] / [*Min]) History --------- Turn | Location | Event 20 | -11/Scrapyard | Discovered new exit (range 16) 72 | -11/Scrapyard | Entered Materials 316 | -10/Materials | Build established: Mutant 491 | -10/Materials | Discovered new exit (range 8) 519 | -10/Materials | Discovered new exit (range 16) 882 | -10/Materials | Discovered new exit (range 13) 1091 | -10/Materials | Discovered new exit (range 9) 1377 | -10/Materials | Discovered new exit (range 16) 1521 | -10/Materials | Entered another Materials area 1521 | -9/Materials | Evolved 2 slots: Utility x1, Weapon x1 1836 | -9/Materials | Build established: Tank 1927 | -9/Materials | Discovered new exit (range 12) 2402 | -9/Materials | Discovered new exit (range 15) 2916 | -9/Materials | Repaired Heat Sink 2948 | -9/Materials | Repaired Med. Armor Plating 3258 | -9/Materials | Self-destructed Last Messages --------------- M006. 03125_ Connecting with Terminal... >>Trojan(Botnet) Trojan loaded successfully. Testing... Terminal linked with 4 systems. Awaiting botnet instructions. >>Trojan(Assimilate) Trojan loaded successfully. Testing... System interface override in place. 03131_ W-16 Scout suffers critical hit. 03131_ Destroyed Lgt. Ion Engine. 03167_ Electrolysis Chamber disabled. 03169_ Critical hit. 03169_ Destroyed Beam Rifle. 03188_ Acquired Hammer. 03189_ Dropped Minigun. 03235_ Med. Armor Plating destroyed. 03238_ Lgt. Nuclear Core destroyed. Map ----- +----------------------------------------------------+ | | | | | | | | | | | | | | | | | | | | | | | | | ?????????????????????????????????????????????????? | | ##????????????##########?????????????????????????? | | #????????????# #?????????????????????????? | | #????????????# #?????????????????????????? | | #????????????# """ #?????????????????????????? | | ##############[ """""#?????????######??????????? | | + = * + * """""#?????????# ##+###?????? | | ##############= """""#?????????# #?????? | | #????????????#! """ #?????????# #?????? | | #????????????# #?????????# ##/#######?? | | #????????????# #?????????## ## #?? | | #????????????#####+####?########## ##""" """ #?? | | #?????????###### ^##### ] g ##"T """ #?? | | #???####### @ Y ##""" """ #?? | | ## k """"Y ## #?? | | ?????############ ##### """" ## """ #?? | | ?????????????############## """" ## """ #?? | | ?? ???????? # ## """ #?? | | ?# ???????# """ """ """ + ## #?? | | ?# #??????# """ """ """ # """" #####+###+### | | ?# #??????# """ """ """ # """" #???# ## | | ?# #??????# # """" #???# ## " " | | ?# #??????# # #???# ## """ | | ?# #??????########+###### ##### ## """ | | ?# ##########????# #????# = # | | ?# # """ #????# #????#! ! + | | ?# # "R" #????# #????#+####+########+#+# | | ?# #! " " #????# #????# ## # !/[ | | ?# # ! #????# #????# [/ ## "# ![[] | | ?# # #????# #????# = !/ ## T###### | | ?# # """"" #????# #????# ! ## "#????? | | ?# + """"" #????# #????# ## #????? | | ## # """"" #????# #????# # #????? | | # #????# #????# ## #????? | | ####+#####????# #??################ #????? | | ## #??# #????????# #??# """"""" #????# #????? | | ?# #??# #????????# #??# """"""" #????######????? | | ?# #??# #????????# #??# """"""" #??????????????? | +----------------------------------------------------+ Best States ------------- Heat Dissipation 38 Energy Generation 14 Energy Capacity 550 Matter Stores 300 Matter Capacity 300 Sight Range 16 Terrain Scan Density 10 Armor Coverage 450 Evasion (%) 40 Recoil Reduction 2 Offensive Hacking 10 Item Schematics ----------------- None Robot Schematics ------------------ None Fabricated ------------ Nothing Alien Tech Used ----------------- None Achievements -------------- Quantum Hacking Challenges ------------ None Game ------ Seed GuidanceGyrokineticMatter Manual? 0 Play Time 00:41:02 Cumulative 139.6 hours Start 2022.02.17 @ 06:34:26 End 2022.02.17 @ 07:14:35 Sessions 1 Manual Loads 0 Difficulty Rogue Special Mode None Game No. 64 Rogue 46 Adventurer 5 Explorer 13 Win Type - Total 1 Types 0/1/0/0/0/0/0/0/0 Lore% 25 Gallery% 35 Achievement% 28 Wizard Run 0 Options --------- ASCII 0 Keyboard 0 Movement Mouse Keybinds 0 Fullscreen 1 Font 18/SmallcapsGlow Map View 76x50 Tactical HUD 1 Map Filters NONE Filters NONE Steam 1 RUN: fe32aa77-18cb-48a2-9af5-fa791af20a81